bitfinex/quotes_BTCUSD_20230110
["timestamp","ask_amount","ask_price","bid_price","bid_amount"]
[1673378104832,0.89667109,17463.0,17462.0,1.38235759]
[1673378104833,0.02400509,17463.0,17462.0,1.38235759]
[1673378106349,0.02000509,17463.0,17462.0,1.38235759]
[1673378106609,0.02000509,17463.0,17462.0,1.52235759]
[1673378106874,0.01500509,17463.0,17462.0,1.52235759]
[1673378107374,0.31500509,17463.0,17462.0,1.52235759]
[1673378108604,0.31500509,17463.0,17462.0,1.41365759]
[1673378108863,0.01500509,17463.0,17462.0,1.41365759]
[1673378109126,0.01500509,17463.0,17462.0,1.52305759]
[1673378109624,0.31500509,17463.0,17462.0,1.52305759]
[1673378109882,0.01500509,17463.0,17462.0,1.52305759]
[1673378112701,0.01500509,17463.0,17462.0,0.96656885]
[1673378112965,0.01500509,17463.0,17462.0,1.79039397]
[1673378113212,0.01500509,17463.0,17462.0,2.72186397]
[1673378113472,0.01500509,17463.0,17462.0,2.72253816]
[1673378114817,0.01500509,17463.0,17462.0,3.41391816]
[1673378115043,0.01500509,17463.0,17462.0,1.65814885]
[1673378116105,0.01500509,17463.0,17462.0,1.54964885]
[1673378116870,0.45441914,17463.0,17462.0,0.85656885]
[1673378117156,0.8140932,17463.0,17462.0,0.74776885]
[1673378117382,0.8140932,17463.0,17462.0,0.153355]
[1673378117838,1.0140932,17463.0,17462.0,0.153355]
[1673378118409,2.1593712,17463.0,17462.0,0.153355]
[1673378118908,2.4953426,17463.0,17462.0,0.153355]
[1673378119173,2.33894909,17463.0,17462.0,0.153355]
[1673378120499,2.50314909,17463.0,17462.0,0.153355]
[1673378120751,2.50314909,17463.0,17462.0,0.013355]
[1673378121012,2.51614909,17463.0,17462.0,0.022355]
[1673378121276,2.77277696,17463.0,17462.0,0.022355]
[1673378121529,2.78154963,17463.0,17462.0,0.022355]
[1673378121781,3.12609711,17463.0,17462.0,0.022355]
[1673378122005,3.72004478,17463.0,17462.0,0.022355]
[1673378122819,3.37677,17463.0,17462.0,0.022355]
[1673378123337,4.29616843,17463.0,17462.0,0.022355]
[1673378123599,3.37677,17463.0,17462.0,0.022355]
[1673378123845,3.71940401,17463.0,17462.0,0.022355]
[1673378124104,3.37677,17463.0,17462.0,0.022355]
[1673378125889,2.94779154,17463.0,17462.0,0.022355]
[1673378126399,3.62457367,17463.0,17462.0,0.022355]
[1673378126668,2.78359154,17463.0,17462.0,0.022355]
[1673378127172,3.03359154,17463.0,17462.0,0.022355]
[1673378127683,3.61037931,17463.0,17462.0,0.022355]
[1673378127955,3.61037931,17463.0,17462.0,0.009]
[1673378128227,3.03359154,17463.0,17462.0,0.009]
[1673378129241,3.09158207,17463.0,17462.0,0.009]
[1673378129490,3.03359154,17463.0,17462.0,0.009]
[1673378129746,3.09158207,17463.0,17462.0,0.009]
[1673378130007,3.66836984,17463.0,17462.0,0.009]
[1673378130520,3.72821181,17463.0,17462.0,0.009]
[1673378130985,3.67022128,17463.0,17462.0,0.009]
[1673378131729,0.2,17462.0,17458.0,0.00015]
[1673378131976,1.05689502,17459.0,17458.0,0.00015]
[1673378132225,4.60919543,17459.0,17458.0,0.00015]
[1673378132470,4.61769543,17459.0,17458.0,0.00015]
[1673378132714,4.38165346,17459.0,17458.0,0.00015]
[1673378132982,5.31291615,17459.0,17458.0,0.01696733]
[1673378133487,5.31291615,17459.0,17458.0,0.02196733]
[1673378133488,5.2247625,17459.0,17458.0,0.02196733]
[1673378133741,4.1321919,17459.0,17458.0,0.61638118]
[1673378134256,3.30259628,17459.0,17458.0,0.61638118]
[1673378134509,3.5594219,17459.0,17458.0,0.61638118]
[1673378135066,3.73065096,17459.0,17458.0,0.61638118]
[1673378135310,3.5593662,17459.0,17458.0,0.61638118]
[1673378135830,3.30254058,17459.0,17458.0,0.61638118]
[1673378136079,2.70859291,17459.0,17458.0,0.61638118]
[1673378136808,3.00859291,17459.0,17458.0,0.61638118]
[1673378138061,3.00859291,17459.0,17458.0,0.61838118]
[1673378139646,2.83743597,17459.0,17458.0,0.61838118]
[1673378140150,3.00859291,17459.0,17458.0,0.61838118]
[1673378141292,3.14279189,17459.0,17458.0,0.61838118]
[1673378141842,3.39961751,17459.0,17458.0,0.61838118]
[1673378142594,3.00859291,17459.0,17458.0,0.61838118]
[1673378142888,3.26541853,17459.0,17458.0,0.61838118]
[1673378143906,3.00859291,17459.0,17458.0,0.61838118]
[1673378144148,3.26541853,17459.0,17458.0,0.61838118]
[1673378144878,3.00859291,17459.0,17458.0,0.61838118]
[1673378145124,3.5272751,17459.0,17458.0,0.61838118]
[1673378145619,3.32526157,17459.0,17458.0,0.61838118]
[1673378147411,3.66770327,17459.0,17458.0,0.61838118]
[1673378147900,3.32518847,17459.0,17458.0,0.61838118]
[1673378148153,3.06836285,17459.0,17458.0,0.61838118]
[1673378149216,3.06836285,17459.0,17458.0,0.74502418]
[1673378149406,2.89727901,17459.0,17458.0,0.74502418]
[1673378149903,3.84016553,17459.0,17458.0,0.74502418]
[1673378150153,4.43943285,17459.0,17458.0,0.74502418]
[1673378151153,3.95509639,17459.0,17458.0,0.74502418]
[1673378151398,4.5748651,17459.0,17458.0,0.74502418]
[1673378152175,3.95509639,17459.0,17458.0,0.74502418]
[1673378152430,3.52741256,17459.0,17458.0,0.74502418]
[1673378152684,4.50747306,17459.0,17458.0,0.74502418]
[1673378153187,3.95543054,17459.0,17458.0,0.74502418]
[1673378153980,3.52741256,17459.0,17458.0,0.74502418]
[1673378155003,3.52741256,17459.0,17458.0,0.74496355]
[1673378155257,4.04107591,17459.0,17458.0,0.74496355]
[1673378156021,4.04117591,17459.0,17458.0,0.09533578]
[1673378156298,0.2,17458.0,17456.0,0.60683169]
[1673378156530,3.18023167,17457.0,17456.0,0.60683169]
[1673378156899,3.70320467,17457.0,17456.0,0.60683169]
[1673378157331,3.95320467,17457.0,17456.0,0.60683169]
[1673378157578,4.60976375,17457.0,17456.0,0.60683169]
[1673378157825,5.18915481,17457.0,17456.0,0.60683169]
[1673378158327,5.20315481,17457.0,17456.0,0.63483169]
[1673378158595,5.23323974,17457.0,17456.0,0.63483169]
[1673378158854,4.62376375,17457.0,17456.0,0.63483169]
[1673378159862,4.60056149,17457.0,17456.0,0.63483169]
[1673378160379,5.11398634,17457.0,17456.0,0.63483169]
[1673378160639,5.83569214,17457.0,17456.0,0.63483169]
[1673378160894,5.31615468,17457.0,17456.0,0.63483169]
[1673378161915,4.88739994,17457.0,17456.0,0.63483169]
[1673378162881,4.37397509,17457.0,17456.0,0.63483169]
[1673378164670,4.88840268,17457.0,17456.0,0.63483169]
[1673378164910,5.46779374,17457.0,17456.0,0.63483169]
[1673378166431,4.95336615,17457.0,17456.0,0.63483169]
[1673378166687,4.95336615,17457.0,17456.0,0.04041784]
[1673378167194,5.01135668,17457.0,17456.0,0.04041784]
[1673378167448,5.09696589,17457.0,17456.0,0.04041784]
[1673378167707,5.57414445,17457.0,17454.0,0.59441385]
[1673378167963,1.12833714,17455.0,17454.0,0.59441385]
[1673378168255,5.03898787,17455.0,17454.0,0.59441385]
[1673378168473,4.87478787,17455.0,17454.0,0.59441385]
[1673378168718,4.61013073,17455.0,17454.0,0.59441385]
[1673378168962,5.18952179,17455.0,17454.0,0.59441385]
[1673378169460,5.30452179,17455.0,17454.0,0.59441385]
[1673378169725,5.81917893,17455.0,17454.0,0.59441385]
[1673378169984,5.98337893,17455.0,17453.0,0.00248633]
[1673378170229,1.68183873,17454.0,17453.0,0.00248633]
[1673378170483,2.88747973,17454.0,17453.0,0.00248633]
[1673378170764,2.94547026,17454.0,17453.0,0.00248633]
[1673378171485,0.2,17453.0,17452.0,0.42761622]
[1673378171735,3.35805179,17453.0,17452.0,0.42761622]
[1673378172049,4.28700493,17453.0,17452.0,0.42761622]
[1673378172246,3.94425205,17453.0,17452.0,0.42761622]
[1673378172494,4.11529697,17453.0,17452.0,0.42761622]
[1673378172748,0.2,17452.0,17451.0,0.00250887]
[1673378173004,2.96318662,17452.0,17451.0,0.00250887]
[1673378173252,3.60235068,17452.0,17451.0,0.00250887]
[1673378173503,3.02295962,17452.0,17451.0,0.00250887]
[1673378173749,3.1942472,17452.0,17451.0,0.00250887]
[1673378174017,3.4442472,17452.0,17451.0,0.00250887]
[1673378174273,0.2,17451.0,17449.0,0.0049952]
[1673378174489,2.42496,17450.0,17449.0,0.0049952]
[1673378174788,2.784733,17450.0,17449.0,0.0049952]
[1673378175579,3.034733,17450.0,17449.0,0.0049952]
[1673378175852,3.149733,17450.0,17449.0,0.0049952]
[1673378176371,3.65995533,17450.0,17449.0,0.0049952]
[1673378176619,3.73562552,17450.0,17449.0,0.0049952]
[1673378177192,4.32957319,17450.0,17449.0,0.0049952]
[1673378177919,4.50085464,17450.0,17449.0,0.0049952]
[1673378178953,4.66475464,17450.0,17449.0,0.0049952]
[1673378179205,4.49347319,17450.0,17449.0,0.0049952]
[1673378179709,4.66475464,17450.0,17446.0,0.005]
[1673378179960,0.28658,17448.0,17446.0,0.005]
[1673378180215,2.852429,17447.0,17446.0,0.005]
[1673378180490,3.45487667,17447.0,17446.0,0.005]
[1673378181781,3.46987667,17447.0,17446.0,0.005]
[1673378182030,4.068902,17447.0,17446.0,0.005]
[1673378182290,4.053902,17447.0,17446.0,0.005]
[1673378182568,4.188902,17447.0,17446.0,0.005]
[1673378183575,4.053902,17447.0,17446.0,0.005]
[1673378183852,4.188902,17447.0,17446.0,0.005]
[1673378184116,3.58987667,17447.0,17446.0,0.005]
[1673378186692,3.45487667,17447.0,17446.0,0.005]
[1673378186987,3.96502234,17447.0,17446.0,0.005]
[1673378187239,3.96502234,17447.0,17445.0,0.00380416]
[1673378187573,1.10653189,17446.0,17445.0,0.00380416]
[1673378187740,1.30653189,17446.0,17445.0,0.00380416]
[1673378188001,2.81269889,17446.0,17445.0,0.00380416]
[1673378188251,3.27961615,17446.0,17445.0,0.00380416]
[1673378188510,2.77553193,17446.0,17445.0,0.00380416]
[1673378189794,2.91053193,17446.0,17445.0,0.00380416]
[1673378191587,2.91053193,17446.0,17443.0,0.00397318]
[1673378191588,2.97042739,17446.0,17443.0,0.00397318]
[1673378191844,0.28664,17444.0,17443.0,0.00397318]
[1673378192091,3.74191267,17444.0,17443.0,0.00397318]
[1673378192366,4.14610394,17444.0,17443.0,0.00397318]
[1673378193416,4.28110394,17444.0,17443.0,0.00397318]
[1673378193668,3.59027267,17444.0,17443.0,0.00397318]
[1673378194700,4.18037874,17444.0,17443.0,0.00397318]
[1673378199552,3.59027267,17444.0,17443.0,0.00397318]
[1673378200888,4.1971232,17444.0,17443.0,0.00397318]
[1673378201157,4.64549852,17444.0,17443.0,0.00397318]
[1673378201671,4.03864799,17444.0,17443.0,0.00397318]
[1673378202430,4.07302895,17444.0,17443.0,0.00397318]
[1673378202692,2.97908128,17444.0,17443.0,0.11327318]
[1673378203069,2.84408128,17444.0,17443.0,0.11327318]
[1673378203225,2.84408128,17444.0,17443.0,0.65328541]
[1673378203226,2.33854528,17444.0,17443.0,0.65328541]
[1673378203736,2.33754528,17444.0,17443.0,0.11327318]
[1673378203994,2.20254528,17444.0,17443.0,0.11327318]
[1673378205062,2.20254528,17444.0,17443.0,0.11342242]
[1673378205279,1.68962449,17444.0,17443.0,0.79961052]
[1673378205568,1.11636149,17444.0,17443.0,0.90921052]
[1673378205826,1.15836149,17444.0,17443.0,0.90921052]
[1673378206098,1.15836149,17444.0,17443.0,0.90906128]
[1673378206099,1.11636149,17444.0,17443.0,0.90906128]
[1673378206348,1.15836149,17444.0,17443.0,0.90906128]
[1673378207105,1.11636149,17444.0,17443.0,0.90906128]
[1673378207360,1.15836149,17444.0,17443.0,0.90906128]
[1673378207875,1.15836149,17444.0,17443.0,0.22287318]
[1673378210425,1.66876063,17444.0,17443.0,0.22287318]
[1673378210681,1.72853363,17444.0,17443.0,0.22287318]
[1673378210938,1.72853363,17444.0,17443.0,0.11357318]
[1673378210939,1.92853363,17444.0,17443.0,0.11357318]
[1673378211229,1.98842798,17444.0,17443.0,0.11357318]
[1673378211728,1.99692798,17444.0,17443.0,0.00397318]
[1673378212509,2.97707146,17444.0,17443.0,0.00397318]
[1673378213018,3.09207146,17444.0,17443.0,0.00397318]
[1673378213276,2.97707146,17444.0,17443.0,0.00397318]
[1673378213550,3.49519273,17444.0,17443.0,0.00397318]
[1673378213793,3.63019273,17444.0,17443.0,0.00397318]
[1673378214055,3.49519273,17444.0,17443.0,0.00397318]
[1673378214316,3.66648644,17444.0,17443.0,0.00397318]
[1673378214652,3.4953538,17444.0,17443.0,0.00397318]
[1673378214841,3.83800536,17444.0,17443.0,0.00397318]
[1673378215347,3.66685098,17444.0,17443.0,0.00397318]
[1673378215627,3.83800536,17444.0,17443.0,0.00397318]
[1673378216638,3.4954302,17444.0,17443.0,0.00397318]
[1673378216884,3.12003888,17444.0,17443.0,0.00397318]
[1673378217135,2.98503888,17444.0,17443.0,0.00397318]
[1673378217379,3.83862107,17444.0,17443.0,0.00397318]
[1673378217620,3.6304302,17444.0,17443.0,0.00397318]
[1673378217871,3.97361909,17444.0,17443.0,0.00397318]
[1673378218115,3.12003888,17444.0,17443.0,0.00397318]
[1673378218368,4.08448482,17444.0,17443.0,0.00397318]
[1673378218618,3.56636355,17444.0,17443.0,0.00397318]
[1673378220375,3.56709852,17444.0,17443.0,0.00397318]
[1673378220632,2.51666227,17444.0,17443.0,0.00397318]
[1673378220888,3.02705359,17444.0,17443.0,0.00397318]
[1673378221143,3.55905716,17444.0,17443.0,0.00397318]
[1673378222420,4.4189143,17444.0,17443.0,0.00397318]
[1673378223439,3.9387143,17444.0,17443.0,0.00397318]
[1673378223685,3.56432298,17444.0,17443.0,0.00397318]
[1673378223932,4.0747143,17444.0,17443.0,0.00397318]
[1673378224187,3.9387143,17444.0,17443.0,0.00397318]
[1673378224429,4.0737143,17444.0,17443.0,0.00397318]
[1673378224711,3.9387143,17444.0,17443.0,0.00397318]
[1673378224947,4.0747143,17444.0,17443.0,0.00397318]
[1673378225197,3.56005716,17444.0,17443.0,0.00397318]
[1673378226003,3.56005716,17444.0,17443.0,0.0038866]
[1673378226725,0.2,17443.0,17442.0,0.00336806]
[1673378226986,3.14010347,17443.0,17442.0,0.00336806]
[1673378227248,3.71026779,17443.0,17442.0,0.00336806]
[1673378227764,3.33487647,17443.0,17442.0,0.00336806]
[1673378228558,3.55829063,17443.0,17442.0,0.00336806]
[1673378230555,2.95897075,17443.0,17442.0,0.00336806]
[1673378232603,3.43429736,17443.0,17442.0,0.00336806]
[1673378233095,2.95897075,17443.0,17442.0,0.00336806]
[1673378233342,3.45382083,17443.0,17442.0,0.00336806]
[1673378234078,4.27113533,17443.0,17442.0,0.00336806]
[1673378236591,4.06294525,17443.0,17442.0,0.00336806]
[1673378237844,5.15012434,17443.0,17442.0,0.00336806]
[1673378238094,5.01512434,17443.0,17442.0,0.00336806]
[1673378238353,4.60283657,17443.0,17442.0,0.00336806]
[1673378238644,5.31562434,17443.0,17442.0,0.00336806]
[1673378240186,4.60283657,17443.0,17442.0,0.00336806]
[1673378240454,5.18221768,17443.0,17442.0,0.00336806]
[1673378240708,5.31821768,17443.0,17442.0,0.00336806]
[1673378240967,5.18221768,17443.0,17442.0,0.00336806]
[1673378241469,5.31821768,17443.0,17442.0,0.00336806]
[1673378242500,0.2,17442.0,17440.0,0.00336806]
[1673378242750,0.2,17442.0,17439.0,0.00336835]
[1673378242751,1.78324707,17441.0,17439.0,0.00173641]
[1673378243000,1.95524739,17440.0,17439.0,0.00173641]
[1673378243262,3.06384534,17440.0,17439.0,0.00173641]
[1673378243526,3.83000659,17440.0,17439.0,0.00173641]
[1673378243807,3.83000659,17440.0,17437.0,0.00589883]
[1673378243808,5.28245595,17440.0,17437.0,0.00589883]
[1673378244071,5.28245595,17440.0,17436.0,0.00409852]
[1673378244072,1.21130351,17438.0,17436.0,0.00409852]
[1673378244326,1.46863696,17437.0,17436.0,0.00409852]
[1673378244577,3.8849128,17437.0,17436.0,0.00409852]
[1673378244832,4.22792625,17437.0,17436.0,0.67695622]
[1673378245352,4.05645942,17437.0,17436.0,0.67695622]
[1673378245619,4.02792625,17437.0,17436.0,0.67695622]
[1673378245869,4.02792625,17437.0,17436.0,0.33525541]
[1673378245870,3.09099403,17437.0,17436.0,0.33525541]
[1673378246138,3.09099403,17437.0,17436.0,0.33299852]
[1673378246402,2.15772803,17437.0,17436.0,0.33299852]
[1673378246894,2.32924477,17437.0,17436.0,0.33299852]
[1673378247147,2.38901777,17437.0,17436.0,0.33299852]
[1673378247675,2.62924477,17437.0,17436.0,0.33299852]
[1673378247925,3.19283246,17437.0,17436.0,0.33299852]
[1673378248177,3.63072997,17437.0,17436.0,0.33299852]
[1673378248424,3.25266546,17437.0,17436.0,0.33221852]
[1673378249261,3.42413327,17437.0,17436.0,0.33221852]
[1673378249520,3.16077312,17437.0,17436.0,0.00331852]
[1673378249782,4.17574257,17437.0,17436.0,0.00331852]
[1673378250329,4.69013345,17437.0,17436.0,0.00331852]
[1673378250582,4.55513345,17437.0,17436.0,0.00331852]
[1673378250835,4.69013345,17437.0,17436.0,0.00331852]
[1673378251089,4.17574257,17437.0,17436.0,0.00331852]
[1673378251336,4.69013345,17437.0,17436.0,0.00331852]
[1673378251586,4.69018733,17437.0,17436.0,0.00331852]
[1673378252098,4.83378707,17437.0,17436.0,5.2e-07]
[1673378252356,0.32750948,17436.0,17435.0,7.84e-06]
[1673378252605,3.88999239,17436.0,17435.0,7.84e-06]
[1673378252879,3.40660262,17436.0,17435.0,7.84e-06]
[1673378253127,2.9001322,17436.0,17435.0,7.84e-06]
[1673378253386,2.95226465,17436.0,17435.0,7.84e-06]
[1673378253633,2.61590175,17436.0,17435.0,0.23768573]
[1673378253887,3.64403992,17436.0,17435.0,7.84e-06]
[1673378254183,3.52300951,17436.0,17435.0,7.84e-06]
[1673378254400,3.2155706,17436.0,17435.0,7.84e-06]
[1673378254648,3.04415352,17436.0,17435.0,7.84e-06]
[1673378254928,3.79496166,17436.0,17435.0,7.84e-06]
[1673378255465,3.53800737,17436.0,17435.0,7.84e-06]
[1673378255697,3.96627074,17436.0,17435.0,7.84e-06]
[1673378255952,4.65227074,17436.0,17435.0,7.84e-06]
[1673378256208,4.51627074,17436.0,17435.0,7.84e-06]
[1673378256466,4.99637392,17436.0,17435.0,7.84e-06]
[1673378256721,5.28863729,17436.0,17435.0,7.84e-06]
[1673378257000,4.94557769,17436.0,17435.0,7.84e-06]
[1673378257264,4.55255785,17436.0,17435.0,7.84e-06]
[1673378257547,4.20984329,17436.0,17435.0,7.84e-06]
[1673378257816,4.45564329,17436.0,17435.0,7.84e-06]
[1673378258103,4.83375426,17436.0,17435.0,7.84e-06]
[1673378258355,4.96975426,17436.0,17435.0,7.84e-06]
[1673378258616,4.51557391,17436.0,17435.0,7.84e-06]
[1673378259376,4.37957391,17436.0,17435.0,7.84e-06]
[1673378259620,4.94355506,17436.0,17435.0,7.84e-06]
[1673378259865,4.51557391,17436.0,17435.0,7.84e-06]
[1673378260111,4.80755375,17436.0,17435.0,7.84e-06]
[1673378260367,4.94355375,17436.0,17435.0,7.84e-06]
[1673378260624,5.05335375,17436.0,17435.0,7.84e-06]
[1673378261921,5.05329375,17436.0,17435.0,7.84e-06]
[1673378262407,5.39553038,17436.0,17435.0,7.84e-06]
[1673378262651,5.05329375,17436.0,17435.0,7.84e-06]
[1673378263179,0.53249808,17435.0,17434.0,5.4e-07]
[1673378263441,4.63812225,17435.0,17432.0,0.00535688]
[1673378263704,2.12405246,17434.0,17432.0,0.00535688]
[1673378263962,3.52018444,17433.0,17432.0,0.00535688]
[1673378264215,3.87995744,17433.0,17432.0,0.00535688]
[1673378264961,4.56374668,17433.0,17432.0,0.00535688]
[1673378265207,5.07922918,17433.0,17432.0,0.00535688]
[1673378265460,4.26595744,17433.0,17432.0,0.00535688]
[1673378265733,4.86071296,17433.0,17432.0,0.00535688]
[1673378265994,4.56071296,17433.0,17432.0,0.00535688]
[1673378266262,2.73011277,17433.0,17432.0,0.8906279]
[1673378266516,2.73011277,17433.0,17432.0,0.11515688]
[1673378266517,3.2649056,17433.0,17432.0,0.11515688]
[1673378267068,3.2649056,17433.0,17432.0,0.00535688]
[1673378267293,3.1289056,17433.0,17432.0,0.00535688]
[1673378267803,3.4289056,17433.0,17432.0,0.00535688]
[1673378268054,3.5734056,17433.0,17432.0,0.00535688]
[1673378268305,3.4374056,17433.0,17432.0,0.00535688]
[1673378268563,3.4374056,17433.0,17432.0,0.00635688]
[1673378268564,3.97591916,17433.0,17432.0,0.00635688]
[1673378269070,3.97597916,17433.0,17432.0,0.00635688]
[1673378271875,3.6322386,17433.0,17432.0,0.00635688]
[1673378273489,3.6322386,17433.0,17432.0,0.00734818]
[1673378273736,3.6322386,17433.0,17432.0,0.00635688]
[1673378273995,3.6921424,17433.0,17432.0,0.00635688]
[1673378274500,3.6920824,17433.0,17432.0,0.00635688]
[1673378274769,4.10407787,17433.0,17432.0,0.00635688]
[1673378275783,4.27520279,17433.0,17432.0,0.00635688]
[1673378276108,4.10407787,17433.0,17432.0,0.00635688]
[1673378276296,4.27520279,17433.0,17432.0,0.00635688]
[1673378276537,4.53189016,17433.0,17432.0,0.00635688]
[1673378278265,4.7030143,17433.0,17432.0,0.00635688]
[1673378278514,4.53223259,17433.0,17432.0,0.00635688]
[1673378278998,4.12023712,17433.0,17432.0,0.00635688]
[1673378279250,3.86354975,17433.0,17432.0,0.00635688]
[1673378280580,4.12023712,17433.0,17432.0,0.00635688]
[1673378281604,4.12023712,17433.0,17432.0,0.00135688]
[1673378282364,0.71718712,17432.0,17431.0,0.00171376]
[1673378282627,1.25714626,17432.0,17431.0,0.00171376]
[1673378282886,2.34468726,17432.0,17431.0,0.00171376]
[1673378283378,2.65446026,17432.0,17431.0,0.00171376]
[1673378283899,2.77746026,17432.0,17431.0,0.00271376]
[1673378284905,2.77746026,17432.0,17430.0,0.81255276]
[1673378284906,0.2,17431.0,17430.0,0.81255276]
[1673378285143,1.64738,17431.0,17430.0,0.81255276]
[1673378285634,2.25644415,17431.0,17430.0,0.13460513]
[1673378285899,2.50644415,17431.0,17430.0,0.13460513]
[1673378286401,2.55644415,17431.0,17430.0,0.13660513]
[1673378286916,2.99338444,17431.0,17430.0,0.02790513]
[1673378287173,3.3954065,17431.0,17430.0,0.02790513]
[1673378287482,2.09096089,17431.0,17430.0,0.91684714]
[1673378287677,1.91919292,17431.0,17430.0,0.67927591]
[1673378287934,1.34550292,17431.0,17430.0,0.67916925]
[1673378288179,1.34550292,17431.0,17430.0,0.89876925]
[1673378288425,1.34550292,17431.0,17430.0,1.25756725]
[1673378288675,1.34550292,17431.0,17430.0,0.89887591]
[1673378288919,1.34550292,17431.0,17430.0,0.89876925]
[1673378290475,2.34764826,17431.0,17430.0,0.24750513]
[1673378290745,2.97511662,17431.0,17430.0,0.24750513]
[1673378291318,2.40142662,17431.0,17430.0,0.24750513]
[1673378291499,2.57323465,17431.0,17430.0,0.24750513]
[1673378291759,2.40142662,17431.0,17430.0,0.24750513]
[1673378292032,2.97511662,17431.0,17430.0,0.24750513]
[1673378292794,2.40142662,17431.0,17430.0,0.24750513]
[1673378293838,2.97511662,17431.0,17430.0,0.24750513]
[1673378294338,3.14640909,17431.0,17430.0,0.02790513]
[1673378294595,3.14634909,17431.0,17430.0,0.02790513]
[1673378295631,2.57265909,17431.0,17430.0,0.02810807]
[1673378295872,2.830408,17431.0,17430.0,0.02790513]
[1673378296119,2.80410003,17431.0,17430.0,0.02790513]
[1673378298653,3.05772051,17431.0,17430.0,0.02790513]
[1673378298974,2.62794801,17431.0,17430.0,0.02790513]
[1673378299174,3.14205898,17431.0,17430.0,0.02790513]
[1673378299658,3.20196278,17431.0,17430.0,0.02790513]
[1673378300432,3.26173578,17431.0,17430.0,0.02790513]
[1673378300681,3.27023578,17431.0,17430.0,0.02790513]
[1673378301473,2.81324851,17431.0,17430.0,0.02790513]
[1673378301700,3.40838117,17431.0,17430.0,0.02790513]
[1673378301956,5.33051267,17431.0,17430.0,0.02790513]
[1673378302207,4.52823081,17431.0,17430.0,0.02790513]
[1673378302471,3.71883985,17431.0,17430.0,0.26558302]
[1673378302819,3.71883985,17431.0,17430.0,0.6542291]
[1673378302820,2.63058852,17431.0,17430.0,0.6542291]
[1673378302997,3.00639808,17431.0,17430.0,0.6542291]
[1673378303254,2.43270808,17431.0,17430.0,1.0130271]
[1673378303517,1.5153934,17431.0,17430.0,0.8731291]
[1673378304039,1.5153934,17431.0,17430.0,0.9823291]
[1673378304292,1.5153934,17431.0,17430.0,0.95048102]
[1673378304549,1.5153934,17431.0,17430.0,0.71280313]
[1673378304550,1.08586192,17431.0,17430.0,0.71280313]
[1673378304827,1.08586192,17431.0,17430.0,2.40658187]
[1673378304828,0.83586192,17431.0,17430.0,2.40658187]
[1673378305084,6e-05,17432.0,17430.0,6.39253389]
[1673378305380,0.42953148,17435.0,17431.0,2.17974019]
[1673378305381,0.17181448,17435.0,17431.0,2.17974019]
[1673378305648,0.42812758,17436.0,17434.0,0.3285]
[1673378305902,0.59994206,17436.0,17435.0,0.851798]
[1673378306153,1.37728835,17436.0,17435.0,0.687098]
[1673378306766,1.38228835,17436.0,17435.0,0.687098]
[1673378307021,1.12457135,17436.0,17435.0,0.687098]
[1673378307278,1.11957135,17436.0,17435.0,0.687098]
[1673378307533,0.95275687,17436.0,17435.0,0.811098]
[1673378307795,0.43312758,17436.0,17435.0,0.811098]
[1673378308320,0.73312758,17436.0,17435.0,0.811098]
[1673378308828,0.43312758,17436.0,17435.0,0.811098]
[1673378309608,0.43312758,17436.0,17435.0,1.31567169]
[1673378309864,0.43312758,17436.0,17435.0,1.47947169]
[1673378310391,0.43312758,17436.0,17435.0,1.67947169]
[1673378312213,0.42812758,17436.0,17435.0,1.55547169]
[1673378312735,0.43412758,17436.0,17435.0,2.292014]
[1673378312986,0.43412758,17436.0,17435.0,3.280314]
[1673378313553,0.43412758,17436.0,17435.0,3.96703317]
[1673378315085,0.43412758,17436.0,17435.0,2.97883317]
[1673378315611,0.43412758,17436.0,17435.0,2.81453317]
[1673378315865,0.43412758,17436.0,17435.0,2.127814]
[1673378316438,0.43412758,17436.0,17435.0,2.68104202]
[1673378316687,0.43412758,17436.0,17435.0,2.12810375]
[1673378317227,0.42812758,17436.0,17435.0,2.03410375]
[1673378317452,0.42812758,17436.0,17435.0,2.52910375]
[1673378317705,0.42812758,17436.0,17435.0,2.66810375]
[1673378318726,0.42812758,17436.0,17435.0,2.52910375]
[1673378319497,0.42812758,17436.0,17435.0,2.66710375]
[1673378321035,0.42812758,17436.0,17435.0,3.24388402]
[1673378321289,0.57172732,17436.0,17435.0,2.75018402]
[1673378321546,0.57172732,17436.0,17435.0,2.64062239]
[1673378321547,0.42812758,17436.0,17435.0,2.64062239]
[1673378322390,0.42812758,17436.0,17435.0,1.86663627]
[1673378322572,0.42812758,17436.0,17435.0,1.29350639]
[1673378323616,0.42812758,17436.0,17435.0,1.49350639]
[1673378325212,0.42812758,17436.0,17435.0,1.38280639]
[1673378326519,0.42812758,17436.0,17435.0,1.38271008]
[1673378327018,0.42812758,17436.0,17435.0,1.95626808]
[1673378328563,0.42812758,17436.0,17435.0,2.52982608]
[1673378329809,0.42812758,17436.0,17435.0,1.95626808]
[1673378330071,0.42812758,17436.0,17435.0,1.38271008]
[1673378330323,0.42812758,17436.0,17435.0,1.18228196]
[1673378331860,0.42812758,17436.0,17435.0,1.38228196]
[1673378332654,0.42812758,17436.0,17435.0,1.95583996]
[1673378333873,0.42812758,17436.0,17435.0,1.9570939]
[1673378337924,0.42812758,17436.0,17435.0,1.7570939]
[1673378338171,0.42812758,17436.0,17435.0,1.18228196]
[1673378339735,0.42812758,17436.0,17435.0,1.38228196]
[1673378341735,0.42812758,17436.0,17435.0,3.10346893]
[1673378342783,0.42812758,17436.0,17435.0,2.90346893]
[1673378343278,0.42812758,17436.0,17435.0,1.18234464]
[1673378343754,0.42812758,17436.0,17435.0,2.50161628]
[1673378345244,0.42812758,17436.0,17435.0,2.65031267]
[1673378345754,0.42812758,17436.0,17435.0,2.39281628]
[1673378346012,0.42812758,17436.0,17435.0,3.22387067]
[1673378346776,0.42812758,17436.0,17435.0,4.07109788]
[1673378348327,0.42812758,17436.0,17435.0,3.22387067]
[1673378348578,0.42812758,17436.0,17435.0,2.96637428]
[1673378349610,0.42812758,17436.0,17435.0,4.07111685]
[1673378350431,0.00763058,17437.0,17436.0,0.2]
[1673378350629,0.00763058,17437.0,17436.0,1.34760738]
[1673378350891,0.00763058,17437.0,17436.0,1.87806964]
[1673378351659,0.00763058,17437.0,17436.0,2.39225244]
[1673378351903,0.00763058,17437.0,17436.0,2.35958818]
[1673378352154,0.00763058,17437.0,17436.0,2.53125244]
[1673378353374,0.00763058,17437.0,17436.0,3.10477844]
[1673378354430,0.00752335,17437.0,17436.0,3.10477844]
[1673378355691,0.00752335,17437.0,17436.0,1.95717106]
[1673378356695,0.00752335,17437.0,17436.0,1.7855068]
[1673378356947,0.00752335,17437.0,17436.0,1.5855068]
[1673378357206,0.00752335,17437.0,17436.0,1.0119808]
[1673378358217,0.17933783,17437.0,17436.0,1.0119808]
[1673378358476,0.00752335,17437.0,17436.0,1.0119808]
[1673378358725,0.00752335,17437.0,17436.0,1.2119808]
[1673378359236,0.00752335,17437.0,17436.0,1.0119808]
[1673378359494,0.17933783,17437.0,17436.0,1.0119808]
[1673378359749,0.43705483,17437.0,17436.0,1.0119808]
[1673378360018,0.43705483,17437.0,17436.0,0.497798]
[1673378360284,1.36033923,17437.0,17436.0,0.139]